bitfinex/quotes_BTCUSD_20250813
["timestamp","ask_amount","ask_price","bid_price","bid_amount"]
[1755125701269,0.29059863,123100.0,123090.0,0.14631605]
[1755125701447,0.29059863,123100.0,123090.0,0.24747605]
[1755125701761,0.29059863,123100.0,123090.0,0.5282]
[1755125702094,0.29059863,123100.0,123090.0,0.53035]
[1755125702318,0.29059863,123100.0,123090.0,0.5282]
[1755125702980,0.2711429,123100.0,123090.0,0.5282]
[1755125703678,0.2711429,123100.0,123090.0,0.32588]
[1755125704998,0.26141503,123100.0,123090.0,0.32588]
[1755125705211,0.25168716,123100.0,123090.0,0.13132]
[1755125705629,0.25168716,123100.0,123090.0,0.13347]
[1755125706362,0.25168716,123100.0,123090.0,0.13132]
[1755125706586,0.25168716,123100.0,123080.0,0.00049439]
[1755125706794,0.24859716,123100.0,123080.0,0.00049439]
[1755125707003,0.00309,123090.0,123080.0,0.00049439]
[1755125707132,0.20068716,123090.0,123080.0,0.13181439]
[1755125707336,0.20068716,123090.0,123080.0,0.13396439]
[1755125707941,0.20068716,123090.0,123080.0,0.13496439]
[1755125708358,0.20068716,123090.0,123080.0,0.13396439]
[1755125708573,0.20068716,123090.0,123080.0,0.13496439]
[1755125709770,0.20068716,123090.0,123080.0,0.15005556]
[1755125710659,0.20068716,123090.0,123080.0,0.15005944]
[1755125711036,0.20068716,123090.0,123080.0,0.1500598]
[1755125711447,0.20068716,123090.0,123080.0,0.5469398]
[1755125712089,0.20068716,123090.0,123080.0,0.20966046]
[1755125712966,0.76346228,123090.0,123080.0,0.01510046]
[1755125713206,0.46708439,123090.0,123080.0,0.01510046]
[1755125713448,0.80708439,123090.0,123080.0,0.14638046]
[1755125713712,0.80708439,123090.0,123080.0,0.01510046]
[1755125713926,0.83141839,123090.0,123080.0,0.14638046]
[1755125714150,0.83141839,123090.0,123060.0,0.00202988]
[1755125714374,0.37910114,123070.0,123030.0,0.0004]
[1755125714590,0.46182439,123070.0,123050.0,0.1]
[1755125714807,0.00217,123060.0,123050.0,0.1]
[1755125715025,0.00526,123060.0,123050.0,0.23128]
[1755125715251,0.5339321,123060.0,123050.0,0.1]
[1755125715455,0.8739321,123060.0,123030.0,0.0004]
[1755125715675,0.37910114,123040.0,123030.0,0.0004]
[1755125715927,0.38027114,123040.0,123030.0,0.13168]
[1755125716163,1.18518553,123040.0,123030.0,0.0004]
[1755125716397,1.18518553,123040.0,123030.0,0.13168]
[1755125716646,1.20953353,123040.0,123030.0,0.13168]
[1755125716853,1.20953353,123040.0,123030.0,0.0004]
[1755125717065,0.45282533,123040.0,123030.0,0.0004]
[1755125717275,0.45282533,123040.0,123030.0,0.13168]
[1755125717473,0.83592647,123040.0,123030.0,0.13168]
[1755125717704,1.21502761,123040.0,123030.0,0.0004]
[1755125717914,1.21102761,123040.0,123030.0,0.13172]
[1755125718120,1.21102761,123040.0,123030.0,0.0004]
[1755125718299,1.21102761,123040.0,123030.0,0.13172]
[1755125718563,1.21102761,123040.0,123030.0,0.0004]
[1755125718757,0.45282533,123040.0,123030.0,0.13172]
[1755125718970,1.21302761,123040.0,123030.0,0.13168]
[1755125719181,1.21302761,123040.0,123030.0,0.0004]
[1755125719383,1.30498761,123040.0,123030.0,0.05892]
[1755125719779,1.30698761,123040.0,123030.0,0.13168]
[1755125719982,1.30698761,123040.0,123030.0,0.0004]
[1755125720401,1.30698761,123040.0,123030.0,0.07092]
[1755125720587,0.54878533,123040.0,123030.0,0.0004]
[1755125720786,1.30698761,123040.0,123030.0,0.0004]
[1755125721009,1.30698761,123040.0,123030.0,0.13172]
[1755125721386,1.30698761,123040.0,123030.0,0.2028]
[1755125721586,1.30698761,123040.0,123030.0,0.29624]
[1755125721587,1.30498761,123040.0,123030.0,0.29624]
[1755125721833,0.83392647,123040.0,123030.0,0.32636]
[1755125722055,0.83592647,123040.0,123030.0,0.32636]
[1755125722257,1.21502761,123040.0,123030.0,0.13172]
[1755125722435,1.21502761,123040.0,123030.0,0.0004]
[1755125722436,1.21802761,123040.0,123030.0,0.0004]
[1755125722784,0.83085606,123040.0,123030.0,0.13172]
[1755125723207,0.45982533,123040.0,123030.0,0.0004]
[1755125723653,0.03184208,123040.0,123030.0,0.13336]
[1755125723863,0.00749408,123040.0,123030.0,0.13336]
[1755125724098,0.00749408,123040.0,123030.0,0.00407162]
[1755125724305,0.00349408,123040.0,123030.0,0.13539162]
[1755125724518,0.00549408,123040.0,123030.0,0.13641162]
[1755125724720,0.00549408,123040.0,123030.0,0.13539162]
[1755125724830,0.00549408,123040.0,123030.0,0.00204]
[1755125725037,0.00859408,123040.0,123030.0,0.13172]
[1755125725244,0.00659408,123040.0,123030.0,0.13172]
[1755125725441,0.15870486,123040.0,123030.0,0.0004]
[1755125725639,0.53073559,123040.0,123030.0,0.0004]
[1755125725853,0.86819577,123040.0,123030.0,0.13172]
[1755125726077,0.90659454,123040.0,122990.0,0.37103073]
[1755125726307,0.53556381,123040.0,123000.0,0.45375398]
[1755125726909,0.53656381,123040.0,123000.0,0.45375398]
[1755125727116,0.53556381,123040.0,123000.0,0.08272325]
[1755125727402,0.00315,123030.0,123010.0,0.13132]
[1755125727903,0.51441204,123040.0,123010.0,0.13132]
[1755125728063,0.53261192,123040.0,123010.0,0.13132]
[1755125729151,0.00315,123030.0,123010.0,0.13132]
[1755125729323,0.01819988,123030.0,123010.0,0.13132]
[1755125729533,0.01819988,123030.0,123010.0,0.13232]
[1755125729871,0.001,123020.0,123010.0,0.13232]
[1755125730074,0.001,123020.0,123010.0,0.13132]
[1755125730731,0.001,123020.0,123010.0,0.13232]
[1755125731213,0.01605228,123020.0,123010.0,0.13232]
[1755125731587,0.01605228,123020.0,123010.0,0.52948]
[1755125731779,0.01605228,123020.0,123010.0,0.52848]
[1755125731985,0.001,123020.0,123010.0,0.52848]
[1755125732284,0.001,123020.0,123010.0,0.42824]
[1755125732932,0.001,123020.0,123010.0,0.79927073]
[1755125733093,0.001,123020.0,123010.0,0.42824]
[1755125734103,0.001,123020.0,123010.0,0.19568]
[1755125734104,0.00295,123020.0,123010.0,0.19568]
[1755125734296,0.01921333,123020.0,123010.0,0.13232]
[1755125734495,0.01801333,123020.0,123010.0,0.13232]
[1755125734694,0.02116333,123020.0,123010.0,0.13232]
[1755125734935,0.02116333,123020.0,122980.0,0.37103073]
[1755125735108,0.02116333,123020.0,122990.0,0.21404325]
[1755125735308,0.00315,123010.0,122970.0,0.18559077]
[1755125735522,0.01821884,123010.0,122980.0,0.21404325]
[1755125735722,0.01821884,123010.0,122990.0,0.13132]
[1755125736130,0.06684771,123000.0,122980.0,0.08272325]
[1755125736335,0.08191655,123000.0,122990.0,0.13232]
[1755125736711,0.08191655,123000.0,122990.0,0.13132]
[1755125737426,0.08241033,123000.0,122990.0,0.13132]
[1755125737756,0.01556262,123000.0,122990.0,0.37103073]
[1755125737961,0.01556262,123000.0,122990.0,0.47024961]
[1755125738169,0.00049378,123000.0,122990.0,0.60256961]
[1755125738376,0.00049378,123000.0,122990.0,0.58607398]
[1755125738587,0.00049378,123000.0,122990.0,2.21709434]
[1755125738805,0.00049378,123000.0,122990.0,2.26676434]
[1755125739009,0.00049378,123000.0,122990.0,1.89573361]
[1755125739233,0.00049378,123000.0,122990.0,1.87923798]
[1755125740071,0.00049378,123000.0,122990.0,1.43941098]
[1755125740277,0.00049378,123000.0,122990.0,1.56973098]
[1755125740698,0.00049378,123000.0,122990.0,1.57173098]
[1755125741376,0.00049378,123000.0,122990.0,1.56973098]
[1755125741585,0.00049378,123000.0,122990.0,1.96693098]
[1755125741789,0.00049378,123000.0,122990.0,1.96893098]
[1755125741990,0.00049378,123000.0,122990.0,2.23872171]
[1755125742201,0.00049378,123000.0,122990.0,2.25521734]
[1755125743053,0.90049378,123000.0,122990.0,2.25521734]
[1755125743465,0.90049378,123000.0,122990.0,2.22418661]
[1755125743702,0.90049378,123000.0,122990.0,2.20769098]
[1755125744141,0.90049378,123000.0,122990.0,1.91173098]
[1755125744342,0.90049378,123000.0,122990.0,1.91169098]
[1755125746689,0.90049378,123000.0,122990.0,1.54066025]
[1755125746879,0.90049378,123000.0,122990.0,1.91169098]
[1755125750746,0.90049378,123000.0,122990.0,1.54066025]
[1755125750943,0.90049378,123000.0,122990.0,1.91169098]
[1755125751610,0.90049378,123000.0,122990.0,2.30885098]
[1755125752364,0.90049378,123000.0,122990.0,1.93782025]
[1755125752585,0.90049378,123000.0,122990.0,2.30885098]
[1755125752784,0.90049378,123000.0,122990.0,2.69727085]
[1755125753646,0.90049378,123000.0,122990.0,1.93782025]
[1755125754088,0.90049378,123000.0,122990.0,2.59603085]
[1755125754717,0.90049378,123000.0,122990.0,2.30007085]
[1755125754944,0.90049378,123000.0,122990.0,2.24518685]
[1755125755138,0.90049378,123000.0,122990.0,1.35449625]
[1755125755342,0.90049378,123000.0,122990.0,1.86546155]
[1755125755547,0.90049378,123000.0,122990.0,1.48573625]
[1755125755772,0.90049378,123000.0,122990.0,1.86546155]
[1755125755969,0.90049378,123000.0,122990.0,1.35449625]
[1755125756173,0.90589378,123000.0,122990.0,1.82461155]
[1755125757255,0.90589378,123000.0,122990.0,1.10488625]
[1755125757464,0.90589378,123000.0,122990.0,0.56644855]
[1755125757685,0.90589378,123000.0,122990.0,0.69768855]
[1755125757923,0.90589378,123000.0,122990.0,1.03768855]
[1755125758124,0.90589378,123000.0,122990.0,0.69768855]
[1755125758346,0.90589378,123000.0,122990.0,0.31796325]
[1755125758562,0.90589378,123000.0,122990.0,0.69768855]
[1755125759126,0.90589378,123000.0,122990.0,0.31796325]
[1755125759316,0.90589378,123000.0,122990.0,0.56644855]
[1755125759519,0.90589378,123000.0,122990.0,0.69764855]
[1755125761033,0.90373378,123000.0,122990.0,0.69764855]
[1755125761153,0.90589378,123000.0,122990.0,0.69764855]
[1755125761360,1.00207378,123000.0,122990.0,0.104]
[1755125761609,1.46452233,123000.0,122960.0,0.0004]
[1755125761838,0.06684771,122970.0,122960.0,0.0004]
[1755125762066,0.06900771,122970.0,122960.0,0.0004]
[1755125762283,0.07224771,122970.0,122960.0,0.0004]
[1755125762511,0.07124771,122970.0,122960.0,0.0004]
[1755125762934,0.07124771,122970.0,122960.0,0.1316]
[1755125763139,0.07124771,122970.0,122940.0,0.37119797]
[1755125763346,0.00324,122960.0,122930.0,0.37432981]
[1755125763561,0.00216,122940.0,122930.0,0.46446849]
[1755125763769,0.06684771,122950.0,122930.0,0.09322868]
[1755125764004,0.07008771,122950.0,122930.0,0.46755849]
[1755125764218,0.07008771,122950.0,122930.0,0.09631868]
[1755125764425,0.001,122940.0,122930.0,0.80755849]
[1755125764649,0.001,122940.0,122930.0,0.93875849]
[1755125764861,0.001,122940.0,122930.0,0.82591807]
[1755125765080,0.001,122940.0,122930.0,0.93875849]
[1755125765313,0.001,122940.0,122930.0,1.43966668]
[1755125765473,0.003,122940.0,122930.0,1.81090649]
[1755125765694,0.004,122940.0,122930.0,1.81090649]
[1755125766705,0.004,122940.0,122930.0,1.28809049]
[1755125766910,0.06684771,122950.0,122930.0,1.28809049]
[1755125767113,0.06684771,122950.0,122940.0,0.08581325]
[1755125767307,0.06900771,122950.0,122940.0,0.08272325]
[1755125767518,0.06900771,122950.0,122930.0,0.34853543]
[1755125767732,0.06900771,122950.0,122940.0,0.136]
[1755125768118,0.07100771,122950.0,122910.0,0.39570169]
[1755125768317,0.07100771,122950.0,122920.0,0.13616]
[1755125768318,0.07200771,122950.0,122920.0,0.13616]
[1755125768548,0.07200771,122950.0,122920.0,0.22197325]
[1755125768711,0.06684771,122930.0,122910.0,0.00309]
[1755125768910,0.06684771,122930.0,122920.0,0.13624]
[1755125769119,0.06883771,122930.0,122920.0,0.13624]
[1755125769833,0.06883771,122930.0,122910.0,0.10100794]
[1755125769959,0.06883771,122930.0,122920.0,0.13837]
[1755125770547,0.06684771,122950.0,122920.0,0.72426325]
[1755125770761,0.06684771,122950.0,122920.0,1.09550306]
[1755125770983,0.00199,122930.0,122910.0,0.01619469]
[1755125771261,0.06684771,122950.0,122920.0,0.22430325]
[1755125771494,0.06684771,122950.0,122940.0,0.10124]
[1755125771728,0.07207771,122950.0,122940.0,0.4326]
[1755125772147,0.53112102,122950.0,122920.0,0.001]
[1755125772347,0.06684771,122930.0,122920.0,0.001]
[1755125772605,0.06884771,122930.0,122900.0,0.00359]
[1755125772817,0.06884771,122930.0,122910.0,0.21936325]
[1755125773013,0.07206771,122930.0,122910.0,0.21936325]
[1755125773272,0.07206771,122930.0,122920.0,0.1366]
[1755125773526,0.06884771,122930.0,122920.0,0.1366]
[1755125774005,0.002,122930.0,122910.0,0.08272325]
[1755125774236,0.002,122930.0,122910.0,0.45705306]
[1755125774496,0.007,122930.0,122920.0,0.53406814]
[1755125774703,0.003,122930.0,122920.0,2.27044539]
[1755125774908,0.06385094,122970.0,122920.0,2.58669139]
[1755125775124,0.06385094,122970.0,122930.0,1.090495]
[1755125775346,0.06385094,122970.0,122940.0,0.45396306]
[1755125775554,0.06385094,122970.0,122950.0,0.13648]
[1755125775761,0.001,122930.0,122920.0,0.00049347]
[1755125776002,0.06684771,122950.0,122930.0,0.34]
[1755125776215,0.06684771,122950.0,122940.0,0.59237306]
[1755125776440,0.06684771,122950.0,122940.0,0.59546306]
[1755125776680,0.06684771,122950.0,122940.0,0.22422325]
[1755125776920,0.06385094,122970.0,122940.0,0.59546306]
[1755125777141,0.06385094,122970.0,122960.0,0.37123981]
[1755125777388,0.06385094,122970.0,122960.0,0.37629981]
[1755125777389,0.06485094,122970.0,122960.0,0.37629981]
[1755125777597,0.06485094,122970.0,122960.0,0.47501753]
[1755125777815,0.06584094,122970.0,122960.0,0.22113325]
[1755125778024,0.06584094,122970.0,122960.0,0.1364]
[1755125778237,0.06784094,122970.0,122950.0,0.34309]
[1755125778449,0.06784094,122970.0,122960.0,0.13652923]
[1755125778649,0.06584094,122970.0,122960.0,0.13648923]
[1755125778853,0.06784094,122970.0,122960.0,0.13648923]
[1755125779061,0.06884094,122970.0,122960.0,0.13648923]
[1755125779262,0.06685094,122970.0,122960.0,0.00201923]
[1755125779507,0.06685094,122970.0,122960.0,0.14146923]
[1755125779679,0.06685094,122970.0,122960.0,0.15689687]
[1755125779930,0.003,122970.0,122960.0,0.6268544]
[1755125780140,0.003,122970.0,122960.0,0.61085993]
[1755125780783,0.003,122970.0,122960.0,0.10326012]
[1755125780988,0.07008771,122990.0,122960.0,0.23962012]
[1755125781226,0.07008771,122990.0,122960.0,0.10326012]
[1755125781432,0.06983771,122970.0,122960.0,0.10017012]
[1755125781642,0.06983771,122970.0,122960.0,0.39937923]
[1755125781880,0.06983771,122970.0,122960.0,0.19484923]
[1755125782090,0.06883771,122970.0,122960.0,0.33124923]
[1755125782310,0.06883771,122970.0,122960.0,4.923e-05]
[1755125782516,0.06883771,122970.0,122960.0,0.13644923]
[1755125783170,0.00199,122970.0,122960.0,0.13841923]
[1755125783388,0.00199,122970.0,122960.0,0.13857923]
[1755125784012,0.001,122970.0,122960.0,0.14166923]
[1755125784253,0.001,122970.0,122960.0,0.51290904]
[1755125784469,0.001,122970.0,122960.0,0.14166923]
[1755125785619,0.00296,122970.0,122960.0,0.00510923]
[1755125785827,0.00296,122970.0,122960.0,0.00201923]
[1755125786027,0.00296,122970.0,122960.0,0.13857923]
[1755125786856,0.00296,122970.0,122960.0,0.00201923]
[1755125787069,0.00296,122970.0,122960.0,0.13656923]
[1755125787870,0.00296,122970.0,122960.0,4.923e-05]
[1755125788079,0.00296,122970.0,122960.0,0.13648923]
[1755125788860,0.00296,122970.0,122960.0,0.00531923]
[1755125789283,0.00296,122970.0,122960.0,0.13834923]
[1755125789687,0.001,122970.0,122960.0,0.00531923]
[1755125789813,0.001,122970.0,122960.0,0.14151923]
[1755125791716,0.001,122970.0,122960.0,0.89148229]
[1755125791918,0.001,122970.0,122960.0,1.40228129]
[1755125792459,0.9,123000.0,122960.0,1.41524773]
[1755125792677,0.9,123000.0,122970.0,2.31700225]
[1755125792873,0.9,123000.0,122990.0,0.37333981]
[1755125793060,0.9,123000.0,122990.0,0.59519306]
[1755125793466,0.06684771,123020.0,122990.0,0.59519306]
[1755125793688,0.06684771,123000.0,122990.0,0.59202306]
[1755125794092,0.06684771,123020.0,122990.0,0.45606306]
[1755125794365,0.06684771,123020.0,123000.0,0.59297306]
[1755125794543,0.06684771,123020.0,123010.0,0.0021]
[1755125794544,0.06802771,123020.0,123010.0,0.0021]
[1755125794756,0.06802771,123020.0,123010.0,0.1358]
[1755125795523,0.06802771,123020.0,123010.0,0.13584923]
[1755125795949,0.06802771,123020.0,123010.0,0.13576923]
[1755125796402,0.06802771,123020.0,123010.0,0.13572923]
[1755125796563,0.06802771,123020.0,123010.0,0.13564923]
[1755125799217,0.06802771,123020.0,123010.0,0.15089772]
[1755125799457,0.06802771,123020.0,123010.0,0.13540923]
[1755125799686,0.06802771,123020.0,123010.0,0.13750923]
[1755125801633,0.07110771,123020.0,123010.0,0.29600923]
[1755125801857,0.53015102,123020.0,123010.0,0.19476923]
[1755125802076,0.15383096,123020.0,123010.0,0.33044923]
[1755125802284,0.53015102,123020.0,123010.0,0.13572923]
[1755125802550,0.15383096,123020.0,123010.0,4.923e-05]
[1755125802770,0.06802771,123020.0,123010.0,4.923e-05]
[1755125802990,0.06992771,123040.0,123010.0,0.37655904]
[1755125803484,0.06992771,123040.0,123020.0,0.13564]
[1755125803718,0.0012,123030.0,123010.0,4.923e-05]
[1755125803981,0.0012,123030.0,123020.0,0.13774]
[1755125804414,0.0012,123030.0,123020.0,0.13564]
[1755125804639,0.0012,123030.0,123010.0,0.08594248]
[1755125804868,0.0012,123030.0,123020.0,0.13774]
[1755125805102,0.0012,123030.0,123020.0,0.13564]
[1755125806663,0.00426,123030.0,123010.0,4.923e-05]
[1755125806902,0.43808752,123020.0,123010.0,4.923e-05]
[1755125807178,0.44235752,123020.0,123010.0,4.923e-05]
[1755125807427,0.61607077,123020.0,123010.0,4.923e-05]
[1755125807643,0.95607077,123020.0,123010.0,4.923e-05]
[1755125807881,0.95607077,123020.0,123010.0,0.14340923]
[1755125808115,0.58483096,123020.0,123010.0,0.14340923]
[1755125808329,0.95607077,123020.0,123010.0,0.14340923]
[1755125808532,0.95607077,123020.0,123010.0,4.923e-05]
[1755125808738,0.95607077,123020.0,123010.0,0.14332923]
[1755125809363,0.58483096,123020.0,123010.0,0.14332923]
[1755125809770,0.95607077,123020.0,123010.0,0.14332923]
[1755125810392,0.95607077,123020.0,123010.0,4.923e-05]
[1755125810813,0.95607077,123020.0,123010.0,0.10920923]
[1755125811023,0.95607077,123020.0,123010.0,4.923e-05]
[1755125811024,1.35231058,123020.0,123010.0,4.923e-05]
[1755125811239,1.36549525,123020.0,123010.0,0.00272923]
[1755125811641,1.36549525,123020.0,123010.0,0.29868923]
[1755125812060,0.62301563,123020.0,123010.0,0.44236923]
[1755125812265,1.36549525,123020.0,123010.0,0.29600923]
[1755125812464,0.97911077,123020.0,123010.0,0.44252923]
[1755125812694,1.35035058,123020.0,123010.0,0.44252923]
[1755125813116,1.35035058,123020.0,123010.0,0.19476923]
[1755125813351,1.35035058,123020.0,123010.0,0.34148923]
[1755125813560,1.37535058,123020.0,123010.0,0.34148923]
[1755125813963,1.37535058,123020.0,123010.0,4.923e-05]
[1755125814176,1.37535058,123020.0,123010.0,0.14676923]
[1755125814808,1.37731058,123020.0,123010.0,0.14676923]
[1755125815019,1.37731058,123020.0,123010.0,0.14672923]
[1755125815239,1.37731058,123020.0,123010.0,4.923e-05]
[1755125815454,1.37731058,123020.0,123010.0,0.14672923]
[1755125816320,0.63483096,123020.0,123010.0,0.14672923]
[1755125816528,1.37731058,123020.0,123010.0,0.14672923]
[1755125817083,1.40166958,123020.0,123010.0,0.14672923]
[1755125818615,1.40166958,123020.0,123010.0,0.14676923]
[1755125819292,1.40166958,123020.0,123010.0,0.14664923]
[1755125819880,1.40166958,123020.0,123010.0,4.923e-05]
[1755125820079,1.40166958,123020.0,123010.0,0.14652923]
[1755125820460,1.33482187,123020.0,123010.0,0.14652923]
[1755125821086,0.59234225,123020.0,123010.0,0.14652923]
[1755125821277,1.33482187,123020.0,123010.0,0.14652923]
[1755125821488,0.365,123010.0,122920.0,0.19394511]
[1755125821695,0.08272325,122990.0,122920.0,0.27666836]
[1755125821865,0.37123981,122970.0,122920.0,0.27666836]
[1755125822073,0.79396306,122970.0,122960.0,0.00214]
[1755125822487,0.42788325,122970.0,122910.0,0.35560058]
[1755125822687,0.08272325,122960.0,122920.0,0.14668]
[1755125822897,0.08272325,122960.0,122950.0,0.00214]
[1755125823128,0.45396306,122960.0,122950.0,0.00214]
[1755125823343,0.45396306,122960.0,122950.0,0.00218927]
[1755125823543,0.45396306,122960.0,122950.0,0.00537927]
[1755125823948,0.45396306,122960.0,122950.0,0.15209927]
[1755125824175,0.08272325,122960.0,122950.0,0.15209927]
[1755125824356,0.1034104,122960.0,122950.0,0.15209927]
[1755125824561,0.0878035,122960.0,122950.0,0.15209927]
[1755125824798,0.08272325,122960.0,122950.0,0.15294399]
[1755125825179,0.34,122980.0,122950.0,0.00622399]
[1755125825482,0.34,122980.0,122960.0,0.00403472]
[1755125825705,0.024355,122990.0,122970.0,0.15225]
[1755125825918,0.024355,122990.0,122970.0,0.14902]
[1755125825919,0.08272325,122990.0,122970.0,0.14902]
[1755125826178,0.10288656,122990.0,122980.0,0.00403472]
[1755125826384,0.10500656,122990.0,122980.0,0.14906]
[1755125826587,0.44288656,122990.0,122980.0,0.14926]
[1755125826842,0.34,122980.0,122950.0,4.927e-05]
[1755125827044,0.45904331,122970.0,122960.0,0.15031]
[1755125827269,0.34,122980.0,122960.0,0.15031]
[1755125827449,0.34,122980.0,122960.0,0.15245]
[1755125827450,0.08272325,122980.0,122960.0,0.15245]
[1755125827702,0.34,122990.0,122970.0,0.00342286]
[1755125827917,0.42272325,122990.0,122980.0,0.1497]
[1755125828124,0.42272325,122990.0,122980.0,0.15289]
[1755125828549,0.79396306,122990.0,122980.0,0.15289]
[1755125828787,0.80890907,122990.0,122980.0,0.15289]
[1755125828996,0.43978926,122990.0,122980.0,0.1497]
[1755125829432,0.79608306,122990.0,122980.0,0.1497]
[1755125829889,0.42484325,122990.0,122980.0,0.1497]
[1755125830098,0.42484325,122990.0,122980.0,0.00214]
[1755125830280,0.79608306,122990.0,122980.0,0.14748]
[1755125830541,0.79912306,122990.0,122980.0,0.14748]
[1755125830957,0.42788325,122990.0,122980.0,0.14748]
[1755125831171,0.79608306,122990.0,122980.0,0.14962]
[1755125831610,0.42484325,122990.0,122980.0,0.54698]
[1755125831854,0.4399276,122990.0,122980.0,0.54698]
[1755125832024,0.79396306,122990.0,122980.0,0.54698]
[1755125832533,0.82073284,122990.0,122980.0,0.54698]
[1755125832743,0.82285284,122990.0,122980.0,0.54698]
[1755125832966,0.44949303,122990.0,122980.0,0.20013]
[1755125833177,0.44949303,122990.0,122980.0,0.00533]
[1755125833386,0.44949303,122990.0,122980.0,0.15293]
[1755125833580,0.44949303,122990.0,122980.0,0.15329]
[1755125835103,0.82073284,122990.0,122980.0,0.15329]
[1755125835320,0.82589284,122990.0,122980.0,0.148]
[1755125835553,0.82589284,122990.0,122960.0,0.00319]
[1755125835767,0.37123981,122970.0,122960.0,0.00319]
[1755125835999,0.37335981,122970.0,122960.0,0.14816]
[1755125836432,0.00212,122970.0,122960.0,0.00214]
[1755125836606,0.37844006,122970.0,122960.0,0.00214]
[1755125836837,0.37335981,122970.0,122960.0,0.15046]
[1755125837574,0.37335981,122970.0,122950.0,4.927e-05]
[1755125837785,0.34516,122970.0,122960.0,0.14828]
[1755125837992,0.79912306,122970.0,122960.0,0.14828]
[1755125838222,0.82348206,122970.0,122960.0,0.14828]
[1755125838635,0.82348206,122970.0,122950.0,4.927e-05]
[1755125838843,0.0878035,122960.0,122950.0,0.00323927]
[1755125839045,0.0878035,122960.0,122950.0,0.00537927]
[1755125839275,0.0878035,122960.0,122950.0,0.15389927]
[1755125839830,0.08272325,122960.0,122950.0,0.15389927]
[1755125840462,0.08272325,122960.0,122950.0,0.15401927]
[1755125841394,0.0878035,122960.0,122950.0,0.15401927]
[1755125841646,0.45396306,122960.0,122950.0,0.55137927]
[1755125842074,0.08272325,122960.0,122950.0,0.55137927]
[1755125842601,0.15981121,122960.0,122950.0,0.1948]
[1755125842807,0.49981121,122960.0,122950.0,0.1948]
[1755125843026,0.2663,122950.0,122900.0,0.0005]
[1755125843253,0.27138025,122940.0,122900.0,0.00099347]
[1755125843621,0.2663,122940.0,122930.0,0.00214]
[1755125843826,0.37427981,122950.0,122930.0,0.00214]
[1755125844032,0.00508025,122940.0,122910.0,0.1496]
[1755125844241,0.00508025,122940.0,122930.0,0.00214]
[1755125844666,0.00508025,122950.0,122930.0,0.00214]
[1755125844887,0.37632006,122950.0,122930.0,0.15226]
[1755125845181,0.00297,122950.0,122930.0,0.15226]
[1755125845409,0.00508025,122950.0,122940.0,0.15016]
[1755125845617,0.52886102,122960.0,122940.0,0.15225]
[1755125845826,0.00508025,122950.0,122940.0,0.15225]
[1755125846272,0.45396306,122950.0,122940.0,0.15225]
[1755125846495,0.45396306,122950.0,122940.0,0.00213]
[1755125846674,0.027332,122960.0,122940.0,0.15241073]
[1755125846847,0.42272325,122960.0,122940.0,0.15477073]
[1755125847260,0.42272325,122960.0,122940.0,0.00461073]
[1755125847438,0.42272325,122960.0,122950.0,0.15233]
[1755125847866,0.42272325,122960.0,122950.0,0.00213]
[1755125848067,0.39856981,122970.0,122950.0,0.00449]
[1755125848068,0.02436,122970.0,122950.0,0.00449]
[1755125848272,0.0878035,122970.0,122950.0,0.15457]
[1755125848474,0.4278035,122970.0,122950.0,0.15221]
[1755125848715,0.42569325,122970.0,122950.0,0.15221]
[1755125849317,0.024358,122980.0,122950.0,0.00449]
[1755125849556,0.82340131,122980.0,122960.0,0.14992]
[1755125849758,0.82129106,122980.0,122960.0,0.14992]
[1755125850047,0.37622981,122970.0,122940.0,0.00012073]
[1755125850258,0.00508025,122960.0,122950.0,0.15024]
[1755125850461,0.00710025,122960.0,122950.0,0.15237]
[1755125850668,0.00508025,122960.0,122950.0,0.15237]
[1755125850873,0.37632006,122960.0,122950.0,0.15237]
[1755125851074,0.37325981,122960.0,122950.0,0.15237]
[1755125851280,0.37622981,122960.0,122950.0,0.15237]
[1755125851573,0.37622981,122960.0,122950.0,0.54772]
[1755125852299,0.45895306,122960.0,122950.0,0.29616]
[1755125852508,0.45895306,122960.0,122950.0,0.34508]
[1755125852740,0.79895306,122960.0,122940.0,0.00012073]
[1755125852950,0.37929006,122950.0,122940.0,0.00012073]
[1755125853165,0.37622981,122950.0,122940.0,0.15032073]
[1755125853590,0.00499,122950.0,122940.0,0.15032073]
[1755125853790,0.38131006,122950.0,122940.0,0.15032073]
[1755125853986,0.37622981,122950.0,122940.0,0.15032073]
[1755125854436,0.71622981,122950.0,122940.0,0.15032073]
[1755125854858,0.71622981,122950.0,122940.0,0.15004]
[1755125855274,0.34499,122950.0,122940.0,0.15004]
[1755125855466,0.71622981,122950.0,122940.0,0.15004]
[1755125856184,0.34499,122950.0,122940.0,0.15004]
[1755125856328,0.71622981,122950.0,122900.0,0.3984192]
[1755125856529,0.34499,122950.0,122910.0,0.23276325]
[1755125856732,0.71622981,122950.0,122910.0,0.23276325]
[1755125857155,0.71622981,122950.0,122910.0,0.08272325]
[1755125857362,0.00297,122940.0,122920.0,0.14996]
[1755125860365,0.00297,122940.0,122910.0,0.08272325]
[1755125860542,0.00297,122940.0,122930.0,0.14984]
[1755125860752,0.00499,122940.0,122930.0,0.14984]
[1755125860953,0.07183771,122940.0,122910.0,0.08272325]
[1755125861166,0.07183771,122940.0,122930.0,0.1498]
[1755125861514,0.07183771,122940.0,122930.0,0.44596]
[1755125862871,0.41183771,122940.0,122930.0,0.44596]
[1755125863086,0.10708425,122960.0,122930.0,0.19484]
[1755125863306,0.0907735,122960.0,122930.0,0.19484]
[1755125863523,0.4307735,122960.0,122940.0,0.14976]
[1755125863742,0.09417671,122970.0,122920.0,0.37123981]
[1755125863951,0.17689996,122970.0,122930.0,0.1498]
[1755125864195,0.2048012,122970.0,122930.0,0.1498]
[1755125864788,0.57604101,122970.0,122930.0,0.15029347]
[1755125864999,0.57307101,122970.0,122940.0,0.14984]
[1755125865202,0.00805025,122960.0,122940.0,0.14984]
[1755125865634,0.00805025,122960.0,122930.0,0.00049347]
[1755125865795,0.00805025,122960.0,122950.0,0.14972]
[1755125866006,0.38131006,122960.0,122950.0,0.14972]
[1755125866202,0.37622981,122960.0,122950.0,0.14972]
[1755125866859,0.37622981,122960.0,122930.0,0.00049347]
[1755125866992,0.37325981,122960.0,122950.0,0.1496]
[1755125867194,0.79598306,122960.0,122950.0,0.1496]
[1755125867612,0.79895306,122960.0,122950.0,0.1496]
[1755125868445,0.79895306,122960.0,122950.0,0.14956]
[1755125868864,0.82331406,122960.0,122950.0,0.14956]
[1755125870883,0.34,122950.0,122930.0,0.00049347]
[1755125871110,0.37834006,122940.0,122930.0,0.00049347]
[1755125871433,0.37622981,122940.0,122930.0,0.25141347]